bitfinex/quotes_BTCUSD_20251011
["timestamp","ask_amount","ask_price","bid_price","bid_amount"]
[1760204418385,6.74266843,112350.0,112340.0,0.15651985]
[1760204418848,1.74830643,112350.0,112340.0,0.15651985]
[1760204419078,6.74266843,112350.0,112340.0,0.15651985]
[1760204422478,6.85871463,112350.0,112340.0,0.15651985]
[1760204422685,1.86436503,112350.0,112340.0,0.15651985]
[1760204422880,6.85872703,112350.0,112340.0,0.15651985]
[1760204423128,7.53970611,112350.0,112340.0,0.15651985]
[1760204423305,7.5443608,112350.0,112340.0,0.1083604]
[1760204423882,2.5499988,112350.0,112340.0,0.1083604]
[1760204424144,6.09282076,112300.0,112290.0,0.0004]
[1760204424322,5.3645139,112300.0,112290.0,0.04533036]
[1760204424516,6.09282076,112300.0,112290.0,0.00045036]
[1760204424915,5.39130675,112300.0,112290.0,0.08196036]
[1760204425117,5.94151922,112300.0,112290.0,0.08196036]
[1760204425865,5.39130675,112300.0,112290.0,0.15013036]
[1760204426066,5.94151922,112300.0,112290.0,0.15013036]
[1760204426270,5.94151922,112300.0,112290.0,0.08196036]
[1760204426545,5.39130675,112300.0,112290.0,0.08196036]
[1760204429158,0.39694475,112300.0,112290.0,0.15013036]
[1760204429830,0.39694475,112300.0,112290.0,0.08485271]
[1760204430651,0.39694475,112300.0,112290.0,0.00334271]
[1760204430903,0.39694475,112300.0,112290.0,0.04822271]
[1760204431428,0.39694475,112300.0,112290.0,0.08485271]
[1760204431788,0.02679285,112300.0,112290.0,0.7210462]
[1760204431995,0.0301519,112310.0,112290.0,0.70323518]
[1760204432313,0.05694241,112310.0,112300.0,0.1048]
[1760204432515,0.39694241,112310.0,112300.0,0.08151]
[1760204434268,0.39694241,112310.0,112300.0,0.03663]
[1760204434908,1.12523341,112310.0,112290.0,0.10525036]
[1760204435651,0.55021247,112300.0,112290.0,0.03708036]
[1760204435958,4.994362,112300.0,112290.0,0.08196036]
[1760204436452,4.994362,112300.0,112290.0,0.15013036]
[1760204436884,0.39694241,112310.0,112290.0,0.15013036]
[1760204437106,0.94715488,112310.0,112300.0,0.03663]
[1760204437315,0.94715488,112310.0,112300.0,0.08151]
[1760204437606,0.94715488,112310.0,112300.0,0.08382368]
[1760204439771,1.12523341,112310.0,112300.0,0.00231368]
[1760204440943,6.15008269,112310.0,112300.0,0.00231368]
[1760204442914,5.59987022,112310.0,112300.0,0.00231368]
[1760204443114,6.15008269,112310.0,112300.0,0.00231368]
[1760204445718,6.16676962,112310.0,112300.0,0.00231368]
[1760204446480,6.18599404,112310.0,112300.0,0.00231368]
[1760204446687,5.9565411,112310.0,112300.0,0.00231368]
[1760204446927,5.98333395,112310.0,112300.0,0.00231368]
[1760204448213,6.0025597,112310.0,112300.0,0.00231368]
[1760204448416,1.0081977,112310.0,112300.0,0.00231368]
[1760204448644,6.0327116,112310.0,112300.0,0.00231368]
[1760204449003,1.0383496,112310.0,112300.0,0.00231368]
[1760204449195,6.0327116,112310.0,112300.0,0.00231368]
[1760204450757,6.05868673,112310.0,112300.0,0.00231368]
[1760204451596,1.06432473,112310.0,112300.0,0.00231368]
[1760204451807,6.05868673,112310.0,112300.0,0.00231368]
[1760204452625,1.06432473,112310.0,112300.0,0.00231368]
[1760204452858,6.05868673,112310.0,112300.0,0.00231368]
[1760204453078,1.06432473,112310.0,112300.0,0.00231368]
[1760204453523,6.05868673,112310.0,112300.0,0.00231368]
[1760204453728,6.08368672,112310.0,112300.0,0.00231368]
[1760204453855,6.63389919,112310.0,112300.0,0.00231368]
[1760204454271,1.63953719,112310.0,112300.0,0.00231368]
[1760204454475,6.63389919,112310.0,112300.0,0.00231368]
[1760204456208,1.64053719,112310.0,112300.0,0.00231368]
[1760204456396,6.63489919,112310.0,112300.0,0.00231368]
[1760204456593,1.66458743,112310.0,112300.0,0.00231368]
[1760204456817,6.65894943,112310.0,112300.0,0.00231368]
[1760204457615,1.66458743,112310.0,112300.0,0.00231368]
[1760204457849,0.53818736,112310.0,112300.0,0.00231368]
[1760204457983,5.24478142,112310.0,112300.0,0.00231368]
[1760204458195,5.97307242,112310.0,112300.0,0.00231368]
[1760204458648,1.00886232,112310.0,112300.0,0.00231368]
[1760204458980,5.76713278,112310.0,112300.0,0.00231368]
[1760204459293,5.79728468,112310.0,112300.0,0.00231368]
[1760204459700,1.14292268,112310.0,112300.0,0.00231368]
[1760204459892,6.13728468,112310.0,112300.0,0.00231368]
[1760204460015,1.14292268,112310.0,112300.0,0.00231368]
[1760204460226,6.13728468,112310.0,112300.0,0.00231368]
[1760204460452,1.90658007,112310.0,112300.0,0.00231368]
[1760204461123,6.90094207,112310.0,112300.0,0.00231368]
[1760204461755,1.88060494,112310.0,112300.0,0.00231368]
[1760204462052,6.87496694,112310.0,112300.0,0.00231368]
[1760204462602,6.7862476,112310.0,112300.0,0.00231368]
[1760204465886,1.7918856,112310.0,112300.0,0.00231368]
[1760204466098,6.7862476,112310.0,112300.0,0.00231368]
[1760204468364,6.78624051,112310.0,112300.0,0.00231368]
[1760204468564,1.79187851,112310.0,112300.0,0.00231368]
[1760204468776,6.78624051,112310.0,112300.0,0.00231368]
[1760204472242,1.79187851,112310.0,112300.0,0.00231368]
[1760204472422,6.78624051,112310.0,112300.0,0.00231368]
[1760204472747,1.79187851,112310.0,112300.0,0.00231368]
[1760204472980,6.78624051,112310.0,112300.0,0.00231368]
[1760204473506,1.79187851,112310.0,112300.0,0.00231368]
[1760204473911,6.78624051,112310.0,112300.0,0.00231368]
[1760204474813,5.68581557,112310.0,112300.0,0.00231368]
[1760204475137,6.78624051,112310.0,112300.0,0.00231368]
[1760204475339,1.79187851,112310.0,112300.0,0.00231368]
[1760204475484,6.17532362,112310.0,112300.0,0.00231368]
[1760204475670,1.18096162,112310.0,112300.0,0.00231368]
[1760204475871,6.17532362,112310.0,112300.0,0.00231368]
[1760204476291,6.17532455,112310.0,112300.0,0.00231368]
[1760204477097,1.18096255,112310.0,112300.0,0.00231368]
[1760204477301,6.20739154,112310.0,112300.0,0.00231368]
[1760204478939,1.21302954,112310.0,112300.0,0.00231368]
[1760204479112,6.20739154,112310.0,112300.0,0.00231368]
[1760204480197,6.20741061,112310.0,112300.0,0.00231368]
[1760204481368,1.21304861,112310.0,112300.0,0.00231368]
[1760204481748,6.20741061,112310.0,112300.0,0.00231368]
[1760204482826,1.21304861,112310.0,112300.0,0.00231368]
[1760204483036,6.20741061,112310.0,112300.0,0.00231368]
[1760204483365,1.21304861,112310.0,112300.0,0.00231368]
[1760204483575,6.20741061,112310.0,112300.0,0.00231368]
[1760204484271,6.20743476,112310.0,112300.0,0.00231368]
[1760204484581,6.20745408,112310.0,112300.0,0.00231368]
[1760204484795,1.18903231,112310.0,112300.0,0.00231368]
[1760204485016,6.18339431,112310.0,112300.0,0.00231368]
[1760204486330,1.18903231,112310.0,112300.0,0.00231368]
[1760204486546,6.18339431,112310.0,112300.0,0.00231368]
[1760204487207,1.18903231,112310.0,112300.0,0.00231368]
[1760204487420,6.18339431,112310.0,112300.0,0.00231368]
[1760204488039,5.66339898,112310.0,112300.0,0.00231368]
[1760204488274,6.12084004,112310.0,112300.0,0.00231368]
[1760204488495,6.71507033,112310.0,112300.0,0.00231368]
[1760204488714,1.87267529,112310.0,112300.0,0.00231368]
[1760204489115,6.86703729,112310.0,112300.0,0.00231368]
[1760204489435,6.86603729,112310.0,112300.0,0.00231368]
[1760204489904,6.86703729,112310.0,112300.0,0.00231368]
[1760204490125,1.87267529,112310.0,112300.0,0.00231368]
[1760204490476,6.86703729,112310.0,112300.0,0.00231368]
[1760204490818,6.82486932,112310.0,112300.0,0.00231368]
[1760204491242,6.33536127,112310.0,112300.0,0.00231368]
[1760204491448,6.30938614,112310.0,112300.0,0.00231368]
[1760204491653,1.80453219,112310.0,112300.0,0.00231368]
[1760204491856,6.79889419,112310.0,112300.0,0.00231368]
[1760204492078,1.80453219,112310.0,112300.0,0.00231368]
[1760204492302,6.79889419,112310.0,112300.0,0.00231368]
[1760204492505,1.80453219,112310.0,112300.0,0.00231368]
[1760204492784,6.79889419,112310.0,112300.0,0.00231368]
[1760204493617,1.80453219,112310.0,112300.0,0.00231368]
[1760204493825,6.79889419,112310.0,112300.0,0.00231368]
[1760204494803,6.88761353,112310.0,112300.0,0.00231368]
[1760204494991,1.80453219,112310.0,112300.0,0.00231368]
[1760204495239,6.79889419,112310.0,112300.0,0.00231368]
[1760204495436,6.30938614,112310.0,112300.0,0.00231368]
[1760204496938,6.79889419,112310.0,112300.0,0.00231368]
[1760204497134,1.80453219,112310.0,112300.0,0.00231368]
[1760204497363,6.88761353,112310.0,112300.0,0.00231368]
[1760204497558,1.89325153,112310.0,112300.0,0.00231368]
[1760204497757,6.88763321,112310.0,112300.0,0.00231368]
[1760204499284,1.89327121,112310.0,112300.0,0.00231368]
[1760204499484,6.88763321,112310.0,112300.0,0.00231368]
[1760204499695,1.89327121,112310.0,112300.0,0.00231368]
[1760204499893,6.88763321,112310.0,112300.0,0.00231368]
[1760204501463,1.89327121,112310.0,112300.0,0.00231368]
[1760204501663,6.88763321,112310.0,112300.0,0.00231368]
[1760204502483,1.96120421,112310.0,112300.0,0.00231368]
[1760204502693,6.58940508,112300.0,112290.0,1e-08]
[1760204502892,6.90388377,112300.0,112290.0,1e-08]
[1760204503116,1.90952177,112300.0,112290.0,1e-08]
[1760204503275,6.84006594,112300.0,112290.0,0.00057858]
[1760204503711,1.84927785,112300.0,112290.0,0.00057858]
[1760204503910,6.84363985,112300.0,112290.0,0.00057858]
[1760204505119,6.74363986,112300.0,112290.0,0.00057858]
[1760204505318,6.89171583,112300.0,112290.0,0.00057858]
[1760204505519,6.89271583,112300.0,112290.0,0.00057858]
[1760204507375,1.89835383,112300.0,112290.0,0.00057858]
[1760204507551,6.89271583,112300.0,112290.0,0.00057858]
[1760204509144,1.89835383,112300.0,112290.0,0.00057858]
[1760204509332,6.89267609,112300.0,112290.0,0.00057858]
[1760204509536,6.79263721,112300.0,112290.0,0.00057858]
[1760204509740,6.8926372,112300.0,112290.0,0.00057858]
[1760204510977,6.86666207,112300.0,112290.0,0.00057858]
[1760204512674,1.87230007,112300.0,112290.0,0.00057858]
[1760204512875,6.86666207,112300.0,112290.0,0.00057858]
[1760204513037,1.87230007,112300.0,112290.0,0.00057858]
[1760204513413,6.86666207,112300.0,112290.0,0.00057858]
[1760204514874,1.87230007,112300.0,112290.0,0.00057858]
[1760204515069,6.86666207,112300.0,112290.0,0.00057858]
[1760204515243,1.87230007,112300.0,112290.0,0.00057858]
[1760204515452,6.86666207,112300.0,112290.0,0.00057858]
[1760204515654,1.87230007,112300.0,112290.0,0.00057858]
[1760204515906,6.86666207,112300.0,112290.0,0.00057858]
[1760204517945,1.87230007,112300.0,112290.0,0.00057858]
[1760204518151,6.86666207,112300.0,112290.0,0.00057858]
[1760204518358,6.81862583,112300.0,112290.0,0.00057858]
[1760204519979,6.81862583,112300.0,112290.0,1e-08]
[1760204520390,6.84460096,112300.0,112290.0,1e-08]
[1760204521234,1.85023896,112300.0,112290.0,1e-08]
[1760204521444,6.84460096,112300.0,112290.0,1e-08]
[1760204522485,1.85023896,112300.0,112290.0,1e-08]
[1760204522691,6.84460096,112300.0,112290.0,1e-08]
[1760204523107,1.85023896,112300.0,112290.0,1e-08]
[1760204523525,6.84460096,112300.0,112290.0,1e-08]
[1760204524181,1.85023896,112300.0,112290.0,1e-08]
[1760204524597,6.84460096,112300.0,112290.0,1e-08]
[1760204526757,1.85023896,112300.0,112290.0,1e-08]
[1760204526961,6.84460096,112300.0,112290.0,1e-08]
[1760204527420,6.90841879,112300.0,112290.0,1e-08]
[1760204527618,1.91405679,112300.0,112290.0,1e-08]
[1760204527831,6.90841879,112300.0,112290.0,1e-08]
[1760204529361,5.56764,112280.0,112270.0,0.0004]
[1760204529580,6.7273915,112280.0,112270.0,0.00048971]
[1760204529816,6.75787878,112280.0,112270.0,0.00048971]
[1760204530067,6.73384083,112280.0,112270.0,0.00048971]
[1760204530264,1.74305291,112280.0,112270.0,0.00048971]
[1760204530546,6.73741491,112280.0,112270.0,0.00048971]
[1760204530787,1.74405291,112280.0,112270.0,0.00048971]
[1760204531038,6.73841491,112280.0,112270.0,0.00048971]
[1760204531307,6.78649082,112280.0,112270.0,0.00048971]
[1760204531747,6.69777148,112280.0,112270.0,0.00048971]
[1760204532382,6.66572088,112280.0,112270.0,0.00048971]
[1760204532591,6.69782721,112280.0,112270.0,0.00048971]
[1760204533654,5.71881111,112280.0,112270.0,0.00048971]
[1760204533858,6.69782721,112280.0,112270.0,0.00048971]
[1760204534074,6.78654655,112280.0,112270.0,0.00048971]
[1760204534706,6.75444022,112280.0,112270.0,0.00048971]
[1760204535045,6.75444022,112280.0,112270.0,0.0016471]
[1760204536186,6.66572088,112280.0,112270.0,0.0016471]
[1760204536805,1.67135888,112280.0,112270.0,0.0016471]
[1760204537086,6.66572088,112280.0,112270.0,0.0016471]
[1760204537281,1.67135888,112280.0,112270.0,0.0016471]
[1760204537507,1.79419362,112280.0,112270.0,0.0016471]
[1760204537654,6.78855562,112280.0,112270.0,0.0016471]
[1760204538458,6.87727496,112280.0,112270.0,0.0016471]
[1760204538877,1.91502319,112280.0,112270.0,0.0016471]
[1760204539081,6.90938519,112280.0,112270.0,0.0016471]
[1760204540063,1.91502319,112280.0,112270.0,0.0016471]
[1760204540238,6.90938519,112280.0,112270.0,0.0016471]
[1760204541826,6.82066585,112280.0,112270.0,0.0016471]
[1760204542837,1.82630385,112280.0,112270.0,0.0016471]
[1760204543042,6.82066585,112280.0,112270.0,0.0016471]
[1760204543261,1.82630385,112280.0,112270.0,0.0016471]
[1760204543463,6.82066585,112280.0,112270.0,0.0016471]
[1760204543834,6.84664098,112280.0,112270.0,0.0016471]
[1760204544285,5.74479014,112280.0,112270.0,0.0016471]
[1760204544629,0.79363552,112280.0,112270.0,0.0452271]
[1760204544799,6.7902437,112280.0,112270.0,0.0016471]
[1760204545010,6.88299311,112280.0,112270.0,0.0016471]
[1760204546002,1.88863111,112280.0,112270.0,0.0016471]
[1760204546407,5.6948215,112280.0,112270.0,0.0016471]
[1760204546585,6.79667234,112280.0,112270.0,0.0016471]
[1760204546799,1.80231034,112280.0,112270.0,0.0016471]
[1760204547354,6.79667234,112280.0,112270.0,0.0016471]
[1760204548565,6.76456211,112280.0,112270.0,0.0016471]
[1760204549140,1.77023572,112280.0,112270.0,0.0016471]
[1760204549613,6.76459772,112280.0,112270.0,0.0016471]
[1760204550595,6.84961654,112280.0,112270.0,0.0016471]
[1760204552377,6.76459772,112280.0,112270.0,0.0016471]
[1760204553595,1.77023572,112280.0,112270.0,0.0016471]
[1760204553801,6.76459772,112280.0,112270.0,0.0016471]
[1760204555011,1.77023572,112280.0,112270.0,0.0016471]
[1760204555240,6.76459772,112280.0,112270.0,0.0016471]
[1760204555646,6.85331706,112280.0,112270.0,0.0016471]
[1760204556010,1.85895506,112280.0,112270.0,0.0016471]
[1760204556237,6.76459772,112280.0,112270.0,0.0016471]
[1760204556910,1.77023572,112280.0,112270.0,0.0016471]
[1760204557213,6.76331102,112280.0,112270.0,0.0016471]
[1760204557510,1.76894902,112280.0,112270.0,0.0016471]
[1760204557660,6.76331102,112280.0,112270.0,0.0016471]
[1760204559352,1.76894902,112280.0,112270.0,0.0016471]
[1760204559661,6.76331102,112280.0,112270.0,0.0016471]
[1760204559865,1.76894902,112280.0,112270.0,0.0016471]
[1760204560074,6.76331102,112280.0,112270.0,0.0016471]
[1760204560484,6.85203036,112280.0,112270.0,0.0016471]
[1760204560693,6.76331102,112280.0,112270.0,0.0016471]
[1760204562153,1.76894902,112280.0,112270.0,0.0016471]
[1760204562360,6.76331102,112280.0,112270.0,0.0016471]
[1760204563437,1.76894902,112280.0,112270.0,0.0016471]
[1760204563591,6.76331102,112280.0,112270.0,0.0016471]
[1760204563772,1.76894902,112280.0,112270.0,0.0016471]
[1760204564161,6.76331102,112280.0,112270.0,0.0016471]
[1760204565384,1.76894902,112280.0,112270.0,0.0016471]
[1760204565625,6.76331102,112280.0,112270.0,0.0016471]
[1760204566062,6.5777219,112280.0,112270.0,0.0016471]
[1760204566863,6.60452682,112280.0,112270.0,0.0016471]
[1760204567947,1.61016482,112280.0,112270.0,0.0016471]
[1760204568156,6.60452682,112280.0,112270.0,0.0016471]
[1760204568804,1.61016482,112280.0,112270.0,0.0016471]
[1760204569012,6.60452682,112280.0,112270.0,0.0016471]
[1760204569870,1.61016482,112280.0,112270.0,0.0016471]
[1760204570088,6.60452682,112280.0,112270.0,0.0016471]
[1760204570732,1.61016482,112280.0,112270.0,0.0016471]
[1760204571142,6.60452682,112280.0,112270.0,0.0016471]
[1760204572324,1.61016482,112280.0,112270.0,0.0016471]
[1760204572526,6.60452682,112280.0,112270.0,0.0016471]
[1760204573703,1.61016482,112280.0,112270.0,0.0016471]
[1760204573946,6.60452682,112280.0,112270.0,0.0016471]
[1760204576032,6.63663705,112280.0,112270.0,0.0016471]
[1760204577046,1.64227505,112280.0,112270.0,0.0016471]
[1760204577247,6.63663705,112280.0,112270.0,0.0016471]
[1760204577449,1.64227505,112280.0,112270.0,0.0016471]
[1760204577870,6.63663705,112280.0,112270.0,0.0016471]
[1760204578902,1.64227505,112280.0,112270.0,0.0016471]
[1760204579266,6.63663705,112280.0,112270.0,0.0016471]
[1760204579479,1.64227505,112280.0,112270.0,0.0016471]
[1760204579684,6.63663705,112280.0,112270.0,0.0016471]
[1760204580958,1.64227505,112280.0,112270.0,0.0016471]
[1760204581184,6.63663705,112280.0,112270.0,0.0016471]
[1760204581384,1.64227505,112280.0,112270.0,0.0016471]
[1760204581611,6.63663705,112280.0,112270.0,0.0016471]
[1760204582895,6.63664786,112280.0,112270.0,0.0016471]
[1760204583112,1.64228586,112280.0,112270.0,0.0016471]
[1760204583322,6.63664786,112280.0,112270.0,0.0016471]
[1760204586537,6.7253672,112280.0,112270.0,0.0016471]
[1760204587599,6.63664786,112280.0,112270.0,0.0016471]
[1760204588154,6.65591846,112280.0,112270.0,0.0016471]
[1760204588871,1.66155646,112280.0,112270.0,0.0016471]
[1760204589074,6.65591846,112280.0,112270.0,0.0016471]
[1760204589882,1.66155646,112280.0,112270.0,0.0016471]
[1760204590088,6.81868884,112280.0,112270.0,0.0016471]
[1760204590473,6.78657861,112280.0,112270.0,0.0016471]
[1760204591302,1.82432093,112280.0,112270.0,0.0016471]
[1760204591508,6.81868293,112280.0,112270.0,0.0016471]
[1760204591934,1.82432093,112280.0,112270.0,0.0016471]
[1760204592135,6.81868293,112280.0,112270.0,0.0016471]
[1760204592569,6.81968293,112280.0,112270.0,0.0016471]
[1760204592780,6.78757861,112280.0,112270.0,0.0016471]
[1760204592986,1.79321661,112280.0,112270.0,0.0016471]
[1760204593194,6.78757861,112280.0,112270.0,0.0016471]
[1760204593408,1.79321661,112280.0,112270.0,0.0016471]
[1760204593828,6.78757861,112280.0,112270.0,0.0016471]
[1760204594030,1.82530843,112280.0,112270.0,0.0016471]
[1760204594239,6.81967043,112280.0,112270.0,0.0016471]
[1760204595472,1.82530843,112280.0,112270.0,0.0016471]
[1760204595703,6.81967043,112280.0,112270.0,0.0016471]
[1760204596493,6.81964846,112280.0,112270.0,0.0016471]
[1760204597519,6.6974161,112280.0,112270.0,0.0016471]
[1760204597923,5.56765586,112270.0,112260.0,0.0002575]
[1760204598061,6.12339992,112270.0,112260.0,0.00030777]
[1760204598717,6.15020757,112270.0,112260.0,0.00030777]
[1760204599092,6.1761827,112270.0,112260.0,0.00030777]
[1760204599312,1.1818207,112270.0,112260.0,0.00030777]
[1760204599518,6.1761827,112270.0,112260.0,0.00030777]
[1760204600167,6.26490204,112270.0,112260.0,0.00030777]
[1760204600514,1.27054004,112270.0,112260.0,0.00030777]
[1760204600869,6.1761827,112270.0,112260.0,0.00030777]
[1760204601803,1.1818207,112270.0,112260.0,0.00030777]
[1760204602003,6.1761827,112270.0,112260.0,0.00030777]
[1760204602865,1.1818207,112270.0,112260.0,0.00030777]
[1760204603119,1.27054004,112270.0,112260.0,0.00030777]
[1760204603304,6.26490204,112270.0,112260.0,0.00030777]
[1760204603534,1.27054004,112270.0,112260.0,0.00088658]
[1760204603977,6.26490204,112270.0,112260.0,0.00088658]
[1760204604794,1.27054004,112270.0,112260.0,0.00088658]
[1760204604948,6.26490204,112270.0,112260.0,0.00088658]
[1760204605161,1.27054004,112270.0,112260.0,0.00088658]
[1760204605375,6.26490204,112270.0,112260.0,0.00088658]
[1760204606737,1.27054004,112270.0,112260.0,0.00088658]
[1760204606940,6.26490204,112270.0,112260.0,0.00088658]
[1760204607320,1.27054004,112270.0,112260.0,0.00088658]
[1760204607521,6.26490204,112270.0,112260.0,0.00088658]
[1760204611328,1.27054004,112270.0,112260.0,0.00088658]
[1760204611541,6.26490204,112270.0,112260.0,0.00088658]
[1760204612475,6.2648833,112270.0,112260.0,0.00088658]
[1760204613339,1.2705213,112270.0,112260.0,0.00088658]
[1760204613464,6.2648833,112270.0,112260.0,0.00088658]
[1760204615433,1.2705213,112270.0,112260.0,0.00088658]
[1760204615634,6.2648833,112270.0,112260.0,0.00088658]
[1760204615838,1.2705213,112270.0,112260.0,0.00088658]
[1760204616035,6.2648833,112270.0,112260.0,0.00088658]
[1760204616770,1.2705213,112270.0,112260.0,0.00088658]
[1760204617009,6.2648833,112270.0,112260.0,0.00088658]
[1760204617640,1.2705213,112270.0,112260.0,0.00088658]
[1760204618049,6.2648833,112270.0,112260.0,0.00088658]
[1760204618254,6.29697512,112270.0,112260.0,0.00088658]
[1760204619267,1.30261312,112270.0,112260.0,0.00088658]
[1760204619418,6.29697512,112270.0,112260.0,0.00088658]
[1760204619795,1.30261312,112270.0,112260.0,0.00088658]
[1760204619991,6.29697512,112270.0,112260.0,0.00088658]
[1760204620193,6.20825578,112270.0,112260.0,0.00088658]
[1760204620624,1.21389378,112270.0,112260.0,0.00088658]
[1760204620998,6.20825578,112270.0,112260.0,0.00088658]
[1760204622615,6.17616396,112270.0,112260.0,0.00088658]
[1760204622810,6.22482822,112270.0,112260.0,0.00088658]
[1760204624867,1.18180196,112270.0,112260.0,0.00088658]
[1760204625222,6.17616396,112270.0,112260.0,0.00088658]
[1760204625838,1.18180196,112270.0,112260.0,0.00088658]
[1760204626047,6.2002445,112270.0,112260.0,0.00088658]
[1760204626814,1.2058825,112270.0,112260.0,0.00088658]
[1760204627003,6.28896384,112270.0,112260.0,0.00088658]
[1760204627618,1.29460184,112270.0,112260.0,0.00088658]
[1760204627819,6.28896384,112270.0,112260.0,0.00088658]
[1760204628236,1.29460184,112270.0,112260.0,0.00088658]
[1760204628445,6.28896384,112270.0,112260.0,0.00088658]
[1760204628871,1.29460184,112270.0,112260.0,0.00088658]
[1760204629084,6.28896384,112270.0,112260.0,0.00088658]
[1760204630201,6.08915741,112270.0,112260.0,0.13697658]
[1760204630410,1.09480857,112270.0,112260.0,0.13697658]
[1760204630663,6.08917057,112270.0,112260.0,0.13697658]
[1760204631036,6.11932247,112270.0,112260.0,0.13697658]
[1760204631248,1.12496047,112270.0,112260.0,0.07369658]
[1760204631453,6.11932247,112270.0,112260.0,0.00088658]
[1760204631632,6.23800188,112270.0,112260.0,0.00088658]
[1760204632807,1.24363988,112270.0,112260.0,0.00088658]
[1760204633011,6.23800188,112270.0,112260.0,0.00088658]
[1760204633426,6.26397701,112270.0,112260.0,0.00088658]
[1760204633629,1.26961501,112270.0,112260.0,0.00088658]
[1760204633870,6.26397701,112270.0,112260.0,0.00088658]
[1760204634071,1.26961501,112270.0,112260.0,0.00088658]
[1760204634249,6.17525767,112270.0,112260.0,0.00088658]
[1760204634448,1.18089567,112270.0,112260.0,0.00088658]
[1760204634655,6.17525767,112270.0,112260.0,0.00088658]
[1760204635269,6.14928254,112270.0,112260.0,0.00088658]
[1760204635683,5.6594733,112270.0,112260.0,0.04231658]
[1760204635907,6.14928254,112270.0,112260.0,0.07369658]
[1760204636132,1.15492054,112270.0,112260.0,0.07369658]
[1760204636279,6.14928254,112270.0,112260.0,0.07369658]
[1760204636841,1.15492054,112270.0,112260.0,0.07369658]
[1760204637038,6.14928254,112270.0,112260.0,0.07369658]
[1760204637595,1.13084,112270.0,112260.0,0.13697658]
[1760204637797,6.125202,112270.0,112260.0,0.13697658]
[1760204638000,6.125202,112270.0,112260.0,0.07369658]
[1760204638205,0.12288879,112270.0,112260.0,0.13697658]
[1760204638525,5.334362,112270.0,112260.0,0.3329502]
[1760204638729,0.3668018,112270.0,112260.0,0.31513442]
[1760204639103,0.3969537,112270.0,112260.0,0.31513442]
[1760204640082,0.0268018,112270.0,112260.0,0.31513442]
[1760204640509,0.48980924,112280.0,112260.0,0.31513442]
[1760204640729,0.69808725,112280.0,112270.0,0.09466]
[1760204640972,1.06488793,112280.0,112270.0,0.13609]
[1760204641432,6.05924993,112280.0,112270.0,0.13609]
[1760204643581,6.05924993,112280.0,112270.0,0.07281]
[1760204643858,5.56944069,112280.0,112270.0,0.13609]
[1760204644026,6.05924993,112280.0,112270.0,0.13609]
[1760204644237,6.05924993,112280.0,112270.0,0.07281]
[1760204645668,6.05924993,112280.0,112270.0,0.13609]
[1760204648577,0.39695258,112280.0,112270.0,0.13609]
[1760204648779,0.39695258,112280.0,112270.0,0.15390419]
[1760204648981,0.57507869,112280.0,112270.0,0.15390419]
[1760204650913,0.39695258,112280.0,112270.0,0.15390419]
[1760204651690,0.39695258,112280.0,112270.0,0.13609]
[1760204651898,0.39695258,112280.0,112270.0,0.15390419]
[1760204652156,0.39695258,112280.0,112270.0,0.33204616]
[1760204652368,0.39695258,112280.0,112270.0,0.31423197]
[1760204652577,0.39695258,112280.0,112270.0,0.13609]
[1760204652985,0.39695258,112280.0,112270.0,0.15390419]
[1760204653279,0.39695258,112280.0,112270.0,0.33204616]
[1760204653481,0.39695258,112280.0,112270.0,0.31423197]
[1760204653688,0.39695258,112280.0,112270.0,0.13609]
[1760204654653,0.57507869,112280.0,112270.0,0.13609]
[1760204656945,0.39695258,112280.0,112270.0,0.31423197]
[1760204657855,0.39695258,112280.0,112270.0,0.13609]
[1760204659162,0.39695258,112280.0,112270.0,0.15390419]
[1760204659475,0.39695258,112280.0,112270.0,0.13609]
[1760204659625,0.9475296,112280.0,112270.0,0.13609]
[1760204660033,1.12565571,112280.0,112270.0,0.13609]
[1760204671573,0.9475296,112280.0,112270.0,0.13609]
[1760204672259,1.12565571,112280.0,112270.0,0.13609]
[1760204673293,0.9475296,112280.0,112270.0,0.13609]
[1760204674089,0.9475296,112280.0,112270.0,0.31423197]
[1760204675183,0.9475296,112280.0,112270.0,0.13609]
[1760204675518,0.9475296,112280.0,112270.0,0.31423197]
[1760204676552,0.39695258,112280.0,112270.0,0.31423197]
[1760204676787,0.9475296,112280.0,112270.0,0.31423197]
[1760204677325,0.9173777,112280.0,112270.0,0.31423197]
[1760204683009,0.36680068,112280.0,112270.0,0.31423197]
[1760204683629,0.9173777,112280.0,112270.0,0.31423197]
[1760204684833,0.5773777,112280.0,112270.0,0.31423197]
[1760204685029,0.89057702,112280.0,112270.0,0.31423197]
[1760204685384,0.34,112280.0,112270.0,0.31423197]
[1760204693008,0.34,112280.0,112270.0,0.86480899]
[1760204693580,0.34,112280.0,112270.0,0.31423197]
[1760204696761,0.34,112280.0,112270.0,0.86480899]
[1760204696980,0.07162362,112320.0,112290.0,0.17811025]
[1760204697189,0.07162362,112320.0,112310.0,0.25194853]
[1760204697417,0.64898904,112320.0,112310.0,0.25194853]
[1760204697624,0.57736542,112320.0,112310.0,0.31768853]
[1760204697831,0.0291022,112320.0,112310.0,0.31768853]
[1760204698035,0.55289082,112320.0,112310.0,0.31768853]
[1760204698242,0.89289082,112320.0,112310.0,0.31768853]
[1760204699941,0.3423138,112320.0,112310.0,0.31768853]
[1760204700158,0.89289082,112320.0,112310.0,0.31768853]
[1760204700339,0.3423138,112320.0,112310.0,0.31768853]
[1760204701654,0.0023138,112320.0,112310.0,0.31768853]
[1760204701863,0.0023138,112320.0,112310.0,0.86826555]
[1760204702300,0.0023138,112320.0,112310.0,0.31768853]
[1760204702517,0.0023138,112320.0,112310.0,0.31868853]
[1760204707693,0.0023138,112320.0,112310.0,0.86926555]
[1760204707915,0.0023138,112320.0,112310.0,0.31868853]
[1760204708124,0.3423138,112320.0,112310.0,0.86926555]
[1760204708335,0.3423138,112320.0,112310.0,0.31868853]
[1760204710652,0.55057702,112330.0,112320.0,0.17806267]
[1760204710829,0.55057702,112330.0,112320.0,0.25193267]
[1760204711049,0.55057702,112330.0,112320.0,0.31767267]
[1760204714250,5.79782227,112350.0,112340.0,0.17803097]
[1760204714445,5.79797326,112350.0,112340.0,0.24929097]
[1760204714650,5.79797326,112350.0,112340.0,0.07126]
[1760204715336,6.34855028,112350.0,112340.0,0.07126]
[1760204716290,6.17053361,112350.0,112340.0,0.31176097]
[1760204716776,6.16336744,112350.0,112340.0,0.31176097]
[1760204717384,6.34138257,112350.0,112340.0,0.31176097]
[1760204718090,0.93164504,112350.0,112340.0,0.31176097]
[1760204718258,0.56149314,112350.0,112340.0,0.31176097]
[1760204718816,0.90149314,112350.0,112340.0,0.31176097]
[1760204721560,0.83973449,112350.0,112340.0,0.31176097]
[1760204723739,0.00188557,112350.0,112340.0,0.31176097]
[1760204724262,0.48881837,112370.0,112360.0,0.18689924]
[1760204724263,5.01100861,112370.0,112360.0,0.18689924]
[1760204724469,0.36677616,112380.0,112370.0,0.17798344]
[1760204724674,0.41357462,112380.0,112370.0,0.24924344]
[1760204724893,0.41357462,112380.0,112370.0,0.31171344]
[1760204725104,0.4153085,112380.0,112370.0,0.31171344]
[1760204725425,0.90412687,112380.0,112370.0,0.31171344]